[Event "Champions Showdown Kings 2025"]
[Site "Saint Louis"]
[Date "2025.03.04"]
[Round "1.3"]
[White "Aronian, Levon"]
[Black "So, Wesley"]
[Result "0-1"]
[Annotator "TA"]
[ECO "C54"]
[WhiteElo "2745"]
[BlackElo "2747"]
[PlyCount "82"]
[EventDate "2025.03.02"]
[EventType "swiss"]
[EventCountry "USA"]
[SourceTitle "playchess.com"]
[Source "ChessBase"]
[SourceQuality "1"]
[TimeControl "3600+15"]

{[%evp 11,82,8,26,0,-2,6,5,5,12,11,13,12,2,0,17,10,28,-18,-21,-36,-38,-27,-26,-43,0,0,0,-26,-30,-81,-83,-89,-83,-143,-118,-162,-183,-160,-163,-280,-271,-259,-261,-185,-162,-142,-152,-308,-314,-330,-342,-309,-304,-333,-368,-368,-368,-334,-353,-457,-453,-455,-459,-456,-456,-722,-688,-718,-696,-740,-718,-738,-735]} 1. e4 {[%emt 0:00:01]} e5 {[%emt 0:00:02]} 2. Nf3 {[%emt 0:00:04]} Nc6 {[%emt 0:00:05]} 3. Bc4 {[%emt 0:00:03]} Bc5 {[%emt 0:00:03]} 4. d3 {[%emt 0:00:07]} Nf6 {[%emt 0:00:09]} 5. h3 {[%emt 0:00:02]} d6 {[%emt 0:00:29]} 6. c3 {[%emt 0:00:15]} O-O {[%emt 0:00:16]} (6... a6 7. Bb3 h6 8. Nbd2 Ba7 9. Nf1 d5 10. Qe2 Be6 11. Ng3 O-O 12. O-O Re8 13. Rd1 Qe7 14. d4 dxe4 15. Nxe5 Nxe5 16. dxe5 Bxb3 17. axb3 Qxe5 {½-½ Aronian,L (2730)-So,W (2757) Chess.com Classic Div 2 L rapid 2024 (5.1)}) 7. Bg5 {[%emt 0:00:05] C54: Giuoco Piano: 4 c3 Nf6, main lines with 5 d4 and 5 d3.} a6 {[%emt 0:01:44]} 8. Bb3 {[%emt 0:00:58]} h6 {[%emt 0:01:31]} 9. Bh4 {[%emt 0:00:01] The position is equal.} g5 {[%emt 0:00:06]} 10. Bg3 {[%emt 0:00:01]} Nh5 {[%emt 0:06:51]} 11. Nbd2 {[%emt 0:00:50]} Qf6 $146 {[%emt 0:04:45]} (11... a5 12. a4 Qf6 13. Qe2 Ne7 14. Nh2 Qg6 15. Ng4 Kh7 16. O-O-O f5 17. exf5 Nxf5 18. Bh2 Nf4 19. Bxf4 gxf4 20. Ne4 Ba7 {0-1 Ritter,U (2197)-Barth,H (2126) W-ch WS/M/375 email 2012}) 12. Qe2 {[%emt 0:00:07]} Kh8 {[%emt 0:04:41]} 13. O-O-O {[%emt 0:03:02]} Bd7 {[%emt 0:00:04]} 14. Rdf1 {[%emt 0:06:01]} (14. Kb1 $142) 14... b5 $11 {[%emt 0:02:54]} 15. Bh2 {[%emt 0:02:57][%cal Of3e5]} Nf4 {[%emt 0:00:46]} 16. Bxf4 {[%emt 0:00:02]} gxf4 {[%emt 0:00:02]} 17. g4 {[%emt 0:00:01]} Rg8 {[%emt 0:00:38]} 18. Bd5 {[%emt 0:03:02]} b4 {[%emt 0:02:29]} 19. Nb3 {[%emt 0:07:49][%cal Od3d4] And now d4! would win. A dynamic duo of knights.} bxc3 {[%emt 0:05:34]} 20. Nxc5 {[%emt 0:00:32]} (20. bxc3 $11 {was the only way to keep the balance.} Ba3+ 21. Kd1) 20... dxc5 $17 {[%emt 0:00:02]} 21. bxc3 {[%emt 0:00:01]} Rab8 {[%emt 0:00:04]} 22. Qc2 {[%emt 0:07:01] [#]} (22. Kc2 $142) 22... Na5 $1 {[%emt 0:01:27][%cal Oc5c4]} 23. c4 {[%emt 0:02:02][%csl Oa2,Od3] White has weak pawns} Qb6 {[%emt 0:05:14]} 24. Kd2 {[%emt 0:14:43]} (24. Nxe5 Ba4 25. Nxf7+ (25. Qxa4 {gets mated.} Qb1+ 26. Kd2 Rb2+ 27. Kc3 Rc2+ 28. Qxc2 Qb4#) 25... Kh7 $19) 24... Qb4+ {[%emt 0:00:03]} 25. Ke2 {[%emt 0:00:01]} (25. Qc3 {was the only chance.} Qb2+ 26. Qxb2 Rxb2+ 27. Kc3) 25... Ba4 $19 {[%emt 0:00:58]} 26. Qd2 {[%emt 0:03:45]} Qxd2+ {[%emt 0:00:04]} 27. Nxd2 {[%emt 0:00:02]} Kg7 {[%emt 0:00:10]} 28. Rb1 {[%emt 0:02:49]} c6 {[%emt 0:00:31]} 29. Bxf7 {[%emt 0:02:13] Now White is beyond hope.} (29. Rxb8 Rxb8 30. Rb1 Rxb1 31. Nxb1 cxd5 $17) (29. Rhc1 $17) 29... Kxf7 {[%emt 0:00:01]} 30. Rhc1 {[%emt 0:00:57]} Rb4 {[%emt 0:01:46]} 31. Rc3 {[%emt 0:00:02]} Rxb1 {[%emt 0:04:07]} 32. Nxb1 {[%emt 0:00:01] [#]} Rb8 $1 {[%emt 0:00:01]} 33. Nd2 {[%emt 0:00:31]} Rb4 {[%emt 0:00:03]} 34. h4 {[%emt 0:02:40]} Nb7 {[%emt 0:00:16]} 35. g5 {[%emt 0:02:22]} hxg5 {[%emt 0:01:54] Black is clearly winning.} 36. hxg5 {[%emt 0:00:01]} Nd8 {[%emt 0:00:25] ...Ne6 is the strong threat.} 37. Nf3 {[%emt 0:00:24]} Kg6 {[%emt 0:01:28]} 38. Rc1 {[%emt 0:02:27]} (38. Nxe5+ $142 Kxg5 39. Rc1) 38... Nf7 {[%emt 0:01:39]} 39. Kf1 {[%emt 0:01:11]} Rb2 {[%emt 0:00:12]} 40. a3 {[%emt 0:00:29]} Bc2 {[%emt 0:00:47]} 41. Ne1 {[%emt 0:00:04]} Bb1 {[%emt 0:00:12] Weighted Error Value: White=0.33/Black=0.05 (flawless)   Mistake:       	White=6     	---        Inaccurate:     	White=2     	Black=1      OK:         	White=6     	Black=15     Best:        	White=4     	Black=4      Strong:       	---       	Black=2} 0-1

[Event "Champions Showdown Kings 2025"]
[Site "Saint Louis"]
[Date "2025.03.04"]
[Round "1.3"]
[White "Robson, Ray"]
[Black "Dominguez Perez, Leinier"]
[Result "1-0"]
[Annotator "TA"]
[ECO "E20"]
[WhiteElo "2689"]
[BlackElo "2741"]
[PlyCount "113"]
[EventDate "2025.03.02"]
[EventType "swiss"]
[EventCountry "USA"]
[SourceTitle "playchess.com"]
[Source "ChessBase"]
[SourceQuality "1"]
[TimeControl "3600+15"]

{[%evp 15,113,-19,-10,-60,-61,-38,-18,-5,0,0,0,0,0,-16,27,24,22,10,-1,0,2,-2,33,32,43,41,35,27,19,8,9,11,8,6,4,11,20,23,62,58,65,60,62,62,50,57,60,64,64,61,57,60,68,58,67,40,55,53,56,55,55,28,74,52,49,51,43,19,73,91,177,171,355,322,280,251,765,581,1069,1065,1065,1050,1417,1360,1175,962,2979,2373,4139,2820,1856,1828,1553,1514,8164,7020,8164,6899,5140,5140]} 1. d4 {[%emt 0:00:13]} Nf6 {[%emt 0:00:13]} 2. c4 {[%emt 0:00:03]} e6 {[%emt 0:00:03]} 3. Nc3 {[%emt 0:00:03]} Bb4 {[%emt 0:00:03]} 4. g3 {[%emt 0:00:04]} d5 {[%emt 0:00:21]} 5. Bg2 {[%emt 0:00:03]} O-O {[%emt 0:00:06]} 6. Nf3 {[%emt 0:00:10]} dxc4 {[%emt 0:00:05]} 7. O-O {[%emt 0:00:09]} Nc6 {[%emt 0:00:13][%cal Bb8c6,Bc6a5,Ba5b3][%mdl 32]} 8. a3 {[%emt 0:00:03] 8.Re1 is the fancy move.} Be7 {[%emt 0:00:17]} 9. e4 {[%emt 0:00:03] E20: Nimzo-Indian: 4 g3 and 4 f3.} (9. Be3 $11) 9... Na5 {[%emt 0:00:53]} 10. Be3 {[%emt 0:00:36]} Nb3 {[%emt 0:00:29]} 11. Rb1 {[%emt 0:00:13] White sacrificed a pawn. The position is equal.} c5 {[%emt 0:00:03]} 12. dxc5 {[%emt 0:00:18]} Bxc5 {[%emt 0:00:03]} 13. Bxc5 {[%emt 0:00:02]} Nxc5 {[%emt 0:00:03]} 14. Qe2 $5 $146 {[%emt 0:00:01][%cal Of1d1][%mdl 8] An interesting novelty.} ({Predecessor:} 14. Ne5 b6 15. Nc6 Qxd1 16. Rbxd1 Bb7 17. e5 Bxc6 18. Bxc6 Rac8 19. exf6 Rxc6 20. fxg7 Kxg7 {0-1 Gorovets,A (2517)-Sebenik,M (2551) PRO League Stage rapid 2018 (7)}) 14... b6 {[%emt 0:00:23]} 15. Rfd1 {[%emt 0:07:25]} Qe8 {[%emt 0:18:47]} 16. Qxc4 {[%emt 0:17:37]} Ba6 {[%emt 0:01:56]} 17. Qd4 {[%emt 0:01:51]} Rd8 {[%emt 0:03:42] Prevents e5} 18. Qe3 {[%emt 0:00:11]} Rxd1+ {[%emt 0:12:05]} (18... Bd3 {feels hotter.} 19. Rbc1 Ng4 20. Qg5 Nh6) 19. Rxd1 {[%emt 0:00:17][%cal Bb1d1,Bd1d2,Bd2c2][%mdl 32]} Na4 {[%emt 0:00:03]} 20. e5 {[%emt 0:01:20]} Nxc3 {[%emt 0:04:57]} 21. exf6 {[%emt 0:10:46][%cal Oe3g5]} Qa4 $1 {[%emt 0:00:02]} (21... Nxd1 22. Qg5 g6 23. Qh6 Nxb2 24. Qg7#) 22. Rd2 {[%emt 0:11:45]} (22. Rd4 $5 Ne2+ $8 23. Qxe2 Qxd4 24. Qxa6 (24. Nxd4 Bxe2 25. Nxe2 Rd8 $11) 24... Qd1+ 25. Qf1 $16) 22... Nd5 {[%emt 0:04:44]} 23. Qd4 {[%emt 0:00:07]} ({Reject} 23. Rd4 Qc2 24. Qd2 Rc8 $17) 23... Qxd4 {[%emt 0:00:48]} 24. Nxd4 {[%emt 0:00:15]} Nxf6 {[%emt 0:01:52]} 25. Nc6 {[%emt 0:00:10] Dodges Rd8} Bc4 {[%emt 0:00:06]} 26. Nxa7 {[%emt 0:00:33]} Bd5 {[%emt 0:00:23]} 27. Rc2 {[%emt 0:01:42]} Bxg2 {[%emt 0:04:55]} 28. Kxg2 $14 {[%emt 0:00:03][%mdl 4096] Endgame KRN-KRN} Rb8 {[%emt 0:00:13]} 29. Kf3 {[%emt 0:04:27]} Kf8 {[%emt 0:00:47]} 30. Rc8+ {[%emt 0:00:28]} Rxc8 {[%emt 0:00:02]} 31. Nxc8 {[%emt 0:00:03] KN-KN} Nd5 {[%emt 0:00:09]} 32. Ke4 {[%emt 0:00:21]} f6 {[%emt 0:02:10]} 33. Nd6 {[%emt 0:02:46]} g6 {[%emt 0:00:57]} 34. f4 {[%emt 0:03:02]} Ke7 {[%emt 0:00:13]} 35. Nb5 {[%emt 0:00:59]} Kd7 {[%emt 0:00:16]} 36. Kd4 {[%emt 0:00:18]} Ne7 {[%emt 0:01:48]} 37. Kc4 {[%emt 0:00:41]} Nf5 {[%emt 0:03:38]} 38. Kd3 {[%emt 0:00:18] Against Ne3} h5 {[%emt 0:00:32]} (38... Nh6 $11) 39. Nd4 {[%emt 0:00:13]} e5 {[%emt 0:00:38]} 40. fxe5 {[%emt 0:00:19]} fxe5 {[%emt 0:00:01]} 41. Ne2 {[%emt 0:00:14]} Ke6 {[%emt 0:00:47]} (41... Nd6 $11) 42. a4 $16 {[%emt 0:00:11] Black is on the road to losing.} g5 {[%emt 0:00:16] [#]} (42... Nd6 $16) 43. b4 $1 $18 {[%emt 0:00:13][%cal Bb2b4,Bb4a5,Ba5a6][%mdl 32]} g4 $2 {[%emt 0:00:21]} (43... Nd6 {was worth a try.} 44. Nc3 Kf5) 44. a5 {[%emt 0:00:10]} bxa5 {[%emt 0:00:02]} 45. bxa5 {[%emt 0:00:01]} Kd5 $2 {[%emt 0:00:09]} (45... Ne7) 46. a6 {[%emt 0:00:37] White is clearly winning.} e4+ {[%emt 0:00:45][%cal Be5e4,Be4e3][%mdl 32]} 47. Kc3 {[%emt 0:00:01]} Nd6 {[%emt 0:00:04]} 48. Nf4+ {[%emt 0:00:17]} Kc5 {[%emt 0:00:34]} 49. Nxh5 {[%emt 0:00:02]} Nb5+ {[%emt 0:00:11]} 50. Kd2 {[%emt 0:00:01]} Kd4 {[%emt 0:00:06]} 51. Nf6 {[%emt 0:00:14]} e3+ {[%emt 0:00:01]} 52. Ke2 {[%emt 0:00:28]} Nc3+ {[%emt 0:00:11]} 53. Ke1 {[%emt 0:00:03][%cal Oa6a7] Threatening mate with a7!.} Nb5 {[%emt 0:00:02]} 54. Nxg4 {[%emt 0:00:09] Hoping for h4.} Ke4 {[%emt 0:00:06]} 55. h4 {[%emt 0:00:12][%cal Bh2h4,Bh4h5][%mdl 32]} Kf3 {[%emt 0:00:07] [#]} 56. Nxe3 $1 {[%emt 0:00:06][%mdl 512]} Kxe3 {[%emt 0:00:02]} (56... Ke4 57. Kf2) 57. h5 {[%emt 0:00:01] Weighted Error Value: White=0.03 (flawless) /Black=0.76  Mistake:       	---       	Black=5      Inaccurate:     	White=1     	Black=4      OK:         	White=15    	Black=10     Best:        	White=5     	Black=3      Strong:       	White=1     	Black=1} 1-0